[Event "*** Titled Tuesday Blitz"]
[Site "Chess.com"]
[Date "2020.04.14"]
[Round "1"]
[White "GuerrieroFromLevant"]
[Black "Raja3401"]
[Result "1/2-1/2"]
[WhiteElo "2353"]
[BlackElo "2687"]
[TimeControl "180+1"]
[EndTime "10:08:13 PDT"]
[Termination "Game drawn by agreement"]

1. e4 {[%clk 0:03:00.9]} 1... c5 {[%clk 0:02:59.6]} 2. Nf3 {[%clk 0:03:00.6]}
2... d6 {[%clk 0:02:57.9]} 3. Bb5+ {[%clk 0:02:59.3]} 3... Nd7 {[%clk
0:02:57.4]} 4. Ba4 {[%clk 0:02:59.2]} 4... Nf6 {[%clk 0:02:56.9]} 5. O-O {[%clk
0:02:58.2]} 5... g6 {[%clk 0:02:53.3]} 6. Re1 {[%clk 0:02:58]} 6... Bg7 {[%clk
0:02:53.3]} 7. c3 {[%clk 0:02:57.3]} 7... O-O {[%clk 0:02:53.3]} 8. d4 {[%clk
0:02:57.2]} 8... Nb6 {[%clk 0:02:47.3]} 9. Bc2 {[%clk 0:02:54.8]} 9... cxd4
{[%clk 0:02:47.6]} 10. cxd4 {[%clk 0:02:55.4]} 10... Bg4 {[%clk 0:02:47.9]} 11.
Nc3 {[%clk 0:02:53.8]} 11... Rc8 {[%clk 0:02:45.2]} 12. h3 {[%clk 0:02:50]}
12... Bxf3 {[%clk 0:02:44.5]} 13. Qxf3 {[%clk 0:02:50.9]} 13... Nfd7 {[%clk
0:02:43.1]} 14. Be3 {[%clk 0:02:43.5]} 14... Nc4 {[%clk 0:02:40.2]} 15. Bb3
{[%clk 0:02:20.8]} 15... Nxb2 {[%clk 0:02:32.6]} 16. Nd5 {[%clk 0:02:07.4]}
16... Nc4 {[%clk 0:02:29.8]} 17. Bg5 {[%clk 0:02:02.1]} 17... Nf6 {[%clk
0:02:18.4]} 18. Bxf6 {[%clk 0:01:50.9]} 18... Bxf6 {[%clk 0:02:19.3]} 19. Qd3
{[%clk 0:01:50.1]} 19... b5 {[%clk 0:02:13.6]} 20. a4 {[%clk 0:01:48.5]} 20...
Nb2 {[%clk 0:02:11.1]} 21. Nxf6+ {[%clk 0:01:41.6]} 21... exf6 {[%clk
0:02:10.2]} 22. Qxb5 {[%clk 0:01:41.6]} 22... Rb8 {[%clk 0:01:48.4]} 23. Qd5
{[%clk 0:01:41.4]} 23... Qb6 {[%clk 0:01:45.6]} 24. Re3 {[%clk 0:01:32]} 24...
Qc7 {[%clk 0:01:31.2]} 25. Kh2 {[%clk 0:01:22.2]} 25... Rb4 {[%clk 0:01:27.5]}
26. Ra2 {[%clk 0:01:08.9]} 26... Qc1 {[%clk 0:01:11.1]} 27. Qxd6 {[%clk
0:01:08.5]} 27... Rfb8 {[%clk 0:01:07.5]} 28. Bd5 {[%clk 0:01:08.5]} 28... Nd1
{[%clk 0:01:04.4]} 29. Qxf6 {[%clk 0:00:59.9]} 29... Rf8 {[%clk 0:01:01.1]} 30.
Rf3 {[%clk 0:00:55.2]} 30... Qc7+ {[%clk 0:01:01.3]} 31. g3 {[%clk 0:00:49.6]}
31... Nc3 {[%clk 0:00:59.4]} 32. Rc2 {[%clk 0:00:46.4]} 32... Nxd5 {[%clk
0:00:58.7]} 33. Rxc7 {[%clk 0:00:46.5]} 33... Nxf6 {[%clk 0:00:58.9]} 34. Rxf6
{[%clk 0:00:47.4]} 34... Rxd4 {[%clk 0:00:58.1]} 35. Rxa7 {[%clk 0:00:46.6]}
35... Rxe4 {[%clk 0:00:58.4]} 36. a5 {[%clk 0:00:46.7]} 36... Ra4 {[%clk
0:00:58.4]} 37. a6 {[%clk 0:00:46.8]} 37... Kg7 {[%clk 0:00:56.4]} 38. Rf3
{[%clk 0:00:46.6]} 38... h5 {[%clk 0:00:54.2]} 39. Kg2 {[%clk 0:00:46.4]} 39...
Kh6 {[%clk 0:00:54]} 40. h4 {[%clk 0:00:46.4]} 40... Ra5 {[%clk 0:00:52.6]} 41.
Rf6 {[%clk 0:00:46.1]} 41... Kg7 {[%clk 0:00:50.1]} 42. Rf4 {[%clk 0:00:44]}
42... Kh6 {[%clk 0:00:49.7]} 43. Rf6 {[%clk 0:00:41.9]} 43... Kg7 {[%clk
0:00:49.7]} 44. Rb6 {[%clk 0:00:41.6]} 44... Kh6 {[%clk 0:00:43]} 45. Kh3 {[%clk
0:00:34.2]} 45... Ra2 {[%clk 0:00:41.2]} 46. Rf6 {[%clk 0:00:29.1]} 46... Kg7
{[%clk 0:00:40]} 47. Rf4 {[%clk 0:00:29.5]} 47... Kh6 {[%clk 0:00:37]} 48. f3
{[%clk 0:00:26.1]} 48... Ra3 {[%clk 0:00:35.3]} 49. g4 {[%clk 0:00:22.5]} 49...
hxg4+ {[%clk 0:00:34.8]} 50. Kxg4 {[%clk 0:00:23.4]} 50... Ra1 {[%clk
0:00:32.4]} 51. Rc4 {[%clk 0:00:23.1]} 51... Re8 {[%clk 0:00:30.1]} 52. Rxf7
{[%clk 0:00:22]} 52... Rxa6 {[%clk 0:00:23.8]} 53. Rcc7 {[%clk 0:00:21.9]} 53...
Rh8 {[%clk 0:00:22.8]} 54. f4 {[%clk 0:00:21]} 54... Rb6 {[%clk 0:00:21.8]} 55.
Rfd7 {[%clk 0:00:19.2]} 55... Ra6 {[%clk 0:00:21.9]} 56. Ra7 {[%clk 0:00:18.6]}
56... Rxa7 {[%clk 0:00:21.7]} 57. Rxa7 {[%clk 0:00:18.3]} 57... Rc8 {[%clk
0:00:22.2]} 58. Ra6 {[%clk 0:00:18.4]} 58... Kg7 {[%clk 0:00:20.4]} 59. Kg5
{[%clk 0:00:18.1]} 59... Rc5+ {[%clk 0:00:20.4]} 60. Kg4 {[%clk 0:00:18.6]}
60... Kh6 {[%clk 0:00:20.5]} 61. Rb6 {[%clk 0:00:17.9]} 61... Rd5 {[%clk
0:00:20.6]} 62. Ra6 {[%clk 0:00:17.8]} 62... Rc5 {[%clk 0:00:21]} 63. Rf6 {[%clk
0:00:17.9]} 63... Ra5 {[%clk 0:00:20.3]} 64. Re6 {[%clk 0:00:15.9]} 1/2-1/2

[Event "*** Titled Tuesday Blitz"]
[Site "Chess.com"]
[Date "2020.04.14"]
[Round "1"]
[White "Alexandercs432"]
[Black "kingofthenil"]
[Result "1/2-1/2"]
[WhiteElo "2113"]
[BlackElo "2533"]
[TimeControl "180+1"]
[EndTime "10:08:13 PDT"]
[Termination "Game drawn - insufficient material"]

1. e4 {[%clk 0:03:00.9]} 1... Nc6 {[%clk 0:02:58.6]} 2. Nf3 {[%clk 0:03:00.1]}
2... d6 {[%clk 0:02:57.5]} 3. h3 {[%clk 0:02:56.8]} 3... Nf6 {[%clk 0:02:57.7]}
4. Nc3 {[%clk 0:02:55.2]} 4... g6 {[%clk 0:02:58]} 5. d4 {[%clk 0:02:53.2]} 5...
Bg7 {[%clk 0:02:58.2]} 6. Be3 {[%clk 0:02:45.5]} 6... a6 {[%clk 0:02:52.2]} 7.
Be2 {[%clk 0:02:39.1]} 7... O-O {[%clk 0:02:48.2]} 8. O-O {[%clk 0:02:38.7]}
8... b5 {[%clk 0:02:46.1]} 9. a3 {[%clk 0:02:36.7]} 9... Bb7 {[%clk 0:02:45.2]}
10. Re1 {[%clk 0:02:35.9]} 10... e5 {[%clk 0:02:40.1]} 11. dxe5 {[%clk
0:02:28.1]} 11... dxe5 {[%clk 0:02:30.8]} 12. Qxd8 {[%clk 0:02:24.7]} 12...
Rfxd8 {[%clk 0:02:31.7]} 13. Rad1 {[%clk 0:02:21.5]} 13... Bf8 {[%clk
0:01:56.2]} 14. Rxd8 {[%clk 0:02:16.2]} 14... Rxd8 {[%clk 0:01:55.2]} 15. Rd1
{[%clk 0:02:15.9]} 15... Rxd1+ {[%clk 0:01:52.3]} 16. Bxd1 {[%clk 0:02:15.4]}
16... b4 {[%clk 0:01:51]} 17. axb4 {[%clk 0:02:09.4]} 17... Bxb4 {[%clk
0:01:51.9]} 18. Nd5 {[%clk 0:01:33.8]} 18... Bd6 {[%clk 0:01:34.1]} 19. Nxf6+
{[%clk 0:01:26.9]} 19... Kg7 {[%clk 0:01:32.2]} 20. Ne8+ {[%clk 0:01:23]} 20...
Kf8 {[%clk 0:01:30.6]} 21. Nxd6 {[%clk 0:01:21.3]} 21... cxd6 {[%clk 0:01:31.5]}
22. c3 {[%clk 0:01:02.9]} 22... Na5 {[%clk 0:01:26.3]} 23. Nd2 {[%clk
0:00:58.7]} 23... Ke7 {[%clk 0:01:24.8]} 24. b4 {[%clk 0:00:54.1]} 24... Nc6
{[%clk 0:01:24.8]} 25. f3 {[%clk 0:00:50.9]} 25... Nd8 {[%clk 0:01:20.8]} 26.
Kf2 {[%clk 0:00:39.9]} 26... Ne6 {[%clk 0:01:20.2]} 27. g3 {[%clk 0:00:36]}
27... f5 {[%clk 0:01:18.6]} 28. Bb3 {[%clk 0:00:32.1]} 28... f4 {[%clk
0:00:50.9]} 29. gxf4 {[%clk 0:00:28.7]} 29... exf4 {[%clk 0:00:51.8]} 30. Bd4
{[%clk 0:00:25.6]} 30... Nc7 {[%clk 0:00:42.7]} 31. c4 {[%clk 0:00:21.7]} 31...
Ne6 {[%clk 0:00:41.9]} 32. Bc3 {[%clk 0:00:18]} 32... Bc6 {[%clk 0:00:35.8]} 33.
Nb1 {[%clk 0:00:16.5]} 33... h5 {[%clk 0:00:20.3]} 34. Na3 {[%clk 0:00:15.4]}
34... Nc7 {[%clk 0:00:20]} 35. Bc2 {[%clk 0:00:13.7]} 35... g5 {[%clk
0:00:18.3]} 36. Bd1 {[%clk 0:00:12]} 36... Bd7 {[%clk 0:00:18.5]} 37. Bc2 {[%clk
0:00:11.6]} 37... Bxh3 {[%clk 0:00:18.4]} 38. Kg1 {[%clk 0:00:10.4]} 38... Be6
{[%clk 0:00:18.3]} 39. Bd3 {[%clk 0:00:10]} 39... Kf7 {[%clk 0:00:18.3]} 40. Kh2
{[%clk 0:00:10.1]} 40... g4 {[%clk 0:00:16.4]} 41. b5 {[%clk 0:00:10.4]} 41...
axb5 {[%clk 0:00:16]} 42. cxb5 {[%clk 0:00:11.3]} 42... Na8 {[%clk 0:00:15.5]}
43. Bc4 {[%clk 0:00:09.2]} 43... Nb6 {[%clk 0:00:11.6]} 44. Bxe6+ {[%clk
0:00:08.8]} 44... Kxe6 {[%clk 0:00:12.4]} 45. fxg4 {[%clk 0:00:09]} 45... hxg4
{[%clk 0:00:11.9]} 46. Kg2 {[%clk 0:00:09.3]} 46... d5 {[%clk 0:00:11.5]} 47.
exd5+ {[%clk 0:00:09.1]} 47... Kxd5 {[%clk 0:00:12.4]} 48. Bd2 {[%clk
0:00:08.9]} 48... Ke4 {[%clk 0:00:12.1]} 49. Nc2 {[%clk 0:00:07.1]} 49... Kd3
{[%clk 0:00:10.9]} 50. Bxf4 {[%clk 0:00:05.1]} 50... Kxc2 {[%clk 0:00:09.4]} 51.
Kg3 {[%clk 0:00:05.5]} 51... Kd3 {[%clk 0:00:09.2]} 52. Kxg4 {[%clk 0:00:05.7]}
52... Kc4 {[%clk 0:00:08.7]} 53. Be3 {[%clk 0:00:05.6]} 53... Nd7 {[%clk
0:00:08]} 54. b6 {[%clk 0:00:06.1]} 54... Kd5 {[%clk 0:00:07.8]} 55. b7 {[%clk
0:00:05.8]} 55... Kc6 {[%clk 0:00:07.2]} 56. Bf4 {[%clk 0:00:05.5]} 56... Kxb7
{[%clk 0:00:06.7]} 1/2-1/2

[Event "*** Titled Tuesday Blitz"]
[Site "Chess.com"]
[Date "2020.04.14"]
[Round "1"]
[White "grunbergmihai"]
[Black "Zurability"]
[Result "0-1"]
[WhiteElo "2350"]
[BlackElo "2700"]
[TimeControl "180+1"]
[EndTime "10:08:14 PDT"]
[Termination "Zurability won by resignation"]

1. Nf3 {[%clk 0:03:00.3]} 1... d5 {[%clk 0:02:59.3]} 2. c4 {[%clk 0:02:59.4]}
2... e6 {[%clk 0:02:56.8]} 3. g3 {[%clk 0:02:59.1]} 3... Nf6 {[%clk 0:02:57.3]}
4. Bg2 {[%clk 0:02:58.8]} 4... Be7 {[%clk 0:02:57.4]} 5. O-O {[%clk 0:02:57.9]}
5... O-O {[%clk 0:02:57.7]} 6. d4 {[%clk 0:02:56.9]} 6... c6 {[%clk 0:02:55.6]}
7. Qc2 {[%clk 0:02:54.5]} 7... Nbd7 {[%clk 0:02:55.9]} 8. Rd1 {[%clk 0:02:47.8]}
8... b6 {[%clk 0:02:55.4]} 9. b3 {[%clk 0:02:47.3]} 9... Bb7 {[%clk 0:02:53.1]}
10. Nc3 {[%clk 0:02:46.6]} 10... Rc8 {[%clk 0:02:52.8]} 11. e4 {[%clk
0:02:46.1]} 11... c5 {[%clk 0:02:25.5]} 12. exd5 {[%clk 0:02:41.7]} 12... exd5
{[%clk 0:02:24.1]} 13. Qf5 {[%clk 0:02:28.2]} 13... dxc4 {[%clk 0:02:19.4]} 14.
d5 {[%clk 0:02:25.1]} 14... Bd6 {[%clk 0:02:08.2]} 15. bxc4 {[%clk 0:02:22.3]}
15... Ba6 {[%clk 0:02:04.6]} 16. Bg5 {[%clk 0:02:05.6]} 16... h6 {[%clk
0:01:58.7]} 17. Bh4 {[%clk 0:02:03.3]} 17... Qc7 {[%clk 0:01:52.8]} 18. Bxf6
{[%clk 0:01:52.1]} 18... Nxf6 {[%clk 0:01:52.4]} 19. Nd2 {[%clk 0:01:50.4]}
19... Be5 {[%clk 0:01:48.8]} 20. Rac1 {[%clk 0:01:48.9]} 20... Rfe8 {[%clk
0:01:47.9]} 21. Nce4 {[%clk 0:01:44.9]} 21... Nxe4 {[%clk 0:01:45.7]} 22. Nxe4
{[%clk 0:01:37.4]} 22... Rcd8 {[%clk 0:01:43.7]} 23. h4 {[%clk 0:01:26.2]} 23...
Bd4 {[%clk 0:01:43.5]} 24. Kh2 {[%clk 0:01:23.8]} 24... Bc8 {[%clk 0:01:42.1]}
25. Qf3 {[%clk 0:01:22.3]} 25... Re5 {[%clk 0:01:35.4]} 26. Rc2 {[%clk
0:01:15.7]} 26... Bf5 {[%clk 0:01:32]} 27. Re2 {[%clk 0:01:12.2]} 27... Rde8
{[%clk 0:01:30.4]} 28. Rde1 {[%clk 0:01:10.6]} 28... Qd8 {[%clk 0:01:25.1]} 29.
Nd2 {[%clk 0:01:02.3]} 29... Rxe2 {[%clk 0:01:18.2]} 30. Rxe2 {[%clk 0:01:02.3]}
30... g6 {[%clk 0:01:14]} 31. Bh3 {[%clk 0:00:58.3]} 31... Bc2 {[%clk
0:01:08.1]} 32. Rxe8+ {[%clk 0:00:51.5]} 32... Qxe8 {[%clk 0:01:09]} 33. d6
{[%clk 0:00:49.7]} 33... Ba4 {[%clk 0:01:04.4]} 34. Ne4 {[%clk 0:00:40.2]} 34...
Bc6 {[%clk 0:00:59.3]} 35. Nf6+ {[%clk 0:00:39.7]} 35... Bxf6 {[%clk 0:00:59.5]}
36. Qxf6 {[%clk 0:00:39.5]} 36... Qe4 {[%clk 0:00:59.1]} 37. f3 {[%clk
0:00:35.3]} 37... Qe2+ {[%clk 0:00:54.7]} 38. Bg2 {[%clk 0:00:34.9]} 38... Qd2
{[%clk 0:00:49.7]} 39. h5 {[%clk 0:00:28.9]} 39... gxh5 {[%clk 0:00:49.3]} 40.
Kh3 {[%clk 0:00:21.8]} 40... Qg5 {[%clk 0:00:46.9]} 41. Qxg5+ {[%clk 0:00:20]}
41... hxg5 {[%clk 0:00:47.8]} 42. f4 {[%clk 0:00:19.9]} 42... g4+ {[%clk
0:00:38.2]} 43. Kh4 {[%clk 0:00:19.2]} 43... Bd7 {[%clk 0:00:33.1]} 44. Kxh5
{[%clk 0:00:19]} 44... Kg7 {[%clk 0:00:32.6]} 45. Be4 {[%clk 0:00:17.6]} 45...
Kf6 {[%clk 0:00:31.6]} 46. f5 {[%clk 0:00:15.2]} 46... Ke5 {[%clk 0:00:30.2]}
47. Bc2 {[%clk 0:00:14.6]} 47... Kxd6 {[%clk 0:00:30.3]} 48. Kxg4 {[%clk
0:00:14.2]} 48... Ke5 {[%clk 0:00:30.2]} 49. Kg5 {[%clk 0:00:14]} 49... f6+
{[%clk 0:00:28.9]} 50. Kg6 {[%clk 0:00:13.6]} 50... Be8+ {[%clk 0:00:29.2]} 51.
Kg7 {[%clk 0:00:13.5]} 51... Bh5 {[%clk 0:00:29.7]} 52. a3 {[%clk 0:00:11]}
52... Bg4 {[%clk 0:00:29.8]} 53. Kg6 {[%clk 0:00:10.6]} 53... Be2 {[%clk
0:00:29.7]} 54. Bb1 {[%clk 0:00:09.8]} 54... Bxc4 {[%clk 0:00:29.3]} 55. g4
{[%clk 0:00:09.8]} 55... b5 {[%clk 0:00:27]} 56. g5 {[%clk 0:00:10.7]} 56...
fxg5 {[%clk 0:00:26.5]} 57. f6 {[%clk 0:00:10.6]} 57... g4 {[%clk 0:00:26.3]}
58. Kg7 {[%clk 0:00:08.5]} 58... g3 {[%clk 0:00:25.5]} 59. Bd3 {[%clk
0:00:08.4]} 59... Bxd3 {[%clk 0:00:17.5]} 60. f7 {[%clk 0:00:07.9]} 60... g2
{[%clk 0:00:18.1]} 61. f8=Q {[%clk 0:00:08.1]} 61... g1=Q+ {[%clk 0:00:18.6]}
62. Kh8 {[%clk 0:00:09]} 62... Qh2+ {[%clk 0:00:18]} 0-1

[Event "*** Titled Tuesday Blitz"]
[Site "Chess.com"]
[Date "2020.04.14"]
[Round "1"]
[White "CaspiIsrael"]
[Black "WinstonSilvakov"]
[Result "0-1"]
[WhiteElo "2531"]
[BlackElo "2151"]
[TimeControl "180+1"]
[EndTime "10:08:16 PDT"]
[Termination "WinstonSilvakov won by resignation"]

1. e4 {[%clk 0:02:59.3]} 1... Nf6 {[%clk 0:02:56.4]} 2. e5 {[%clk 0:02:59]} 2...
Nd5 {[%clk 0:02:53.9]} 3. d4 {[%clk 0:02:59.3]} 3... d6 {[%clk 0:02:53.2]} 4. c4
{[%clk 0:02:59]} 4... Nb6 {[%clk 0:02:52.4]} 5. f4 {[%clk 0:02:58.9]} 5... dxe5
{[%clk 0:02:52]} 6. fxe5 {[%clk 0:02:58.5]} 6... c5 {[%clk 0:02:52.6]} 7. d5
{[%clk 0:02:53]} 7... e6 {[%clk 0:02:51.4]} 8. d6 {[%clk 0:02:49.6]} 8... Qh4+
{[%clk 0:02:49.9]} 9. g3 {[%clk 0:02:13.9]} 9... Qe4+ {[%clk 0:02:48.9]} 10. Qe2
{[%clk 0:02:14.3]} 10... Qxh1 {[%clk 0:02:47.7]} 11. Nf3 {[%clk 0:02:14.7]}
11... Nc6 {[%clk 0:02:47.5]} 12. Be3 {[%clk 0:02:03.3]} 12... Nxc4 {[%clk
0:02:40.1]} 13. Bxc5 {[%clk 0:01:52.1]} 13... g5 {[%clk 0:02:15.4]} 14. Nc3
{[%clk 0:01:17.5]} 14... g4 {[%clk 0:02:14.1]} 15. Qxc4 {[%clk 0:01:16.9]} 15...
Qxf3 {[%clk 0:02:09.9]} 16. Nb5 {[%clk 0:01:01.7]} 16... Nxe5 {[%clk 0:02:00.5]}
17. Qa4 {[%clk 0:00:46.3]} 17... Bd7 {[%clk 0:01:54.6]} 18. Nc7+ {[%clk
0:00:43.9]} 18... Kd8 {[%clk 0:01:54.5]} 19. Qa5 {[%clk 0:00:42.2]} 19... Qe4+
{[%clk 0:01:42]} 20. Be2 {[%clk 0:00:25.2]} 20... Nd3+ {[%clk 0:01:23.5]} 21.
Kd1 {[%clk 0:00:17]} 21... Nxb2+ {[%clk 0:01:20.7]} 22. Kc1 {[%clk 0:00:14.9]}
22... b6 {[%clk 0:01:13.8]} 23. Bxb6 {[%clk 0:00:14.1]} 23... Qc6+ {[%clk
0:01:13.8]} 24. Kxb2 {[%clk 0:00:12.6]} 24... Rb8 {[%clk 0:01:06]} 25. Nxe6+
{[%clk 0:00:10.2]} 25... Ke8 {[%clk 0:01:01.4]} 26. Nc7+ {[%clk 0:00:10.4]}
26... Kd8 {[%clk 0:01:01.9]} 27. Ne6+ {[%clk 0:00:10]} 27... Kc8 {[%clk
0:01:01.5]} 28. Ba6+ {[%clk 0:00:09.2]} 28... Rb7 {[%clk 0:01:01.7]} 29. Bxb7+
{[%clk 0:00:06.5]} 29... Qxb7 {[%clk 0:01:02]} 30. Rc1+ {[%clk 0:00:06.6]} 30...
Kb8 {[%clk 0:01:02.5]} 31. Ka3 {[%clk 0:00:05.2]} 31... axb6 {[%clk 0:00:56.1]}
32. Qe5 {[%clk 0:00:04.1]} 32... fxe6 {[%clk 0:00:54.3]} 33. Qxh8 {[%clk
0:00:03.1]} 33... Qf3+ {[%clk 0:00:53.9]} 34. Kb2 {[%clk 0:00:03.3]} 34... Qf7
{[%clk 0:00:48]} 35. Kb1 {[%clk 0:00:03.2]} 35... Kb7 {[%clk 0:00:44.5]} 36. Qc3
{[%clk 0:00:03.3]} 36... Bxd6 {[%clk 0:00:42.1]} 37. Qd4 {[%clk 0:00:03.5]}
37... Qf5+ {[%clk 0:00:41.3]} 38. Rc2 {[%clk 0:00:02.7]} 38... Qd5 {[%clk
0:00:38.2]} 39. Qxd5+ {[%clk 0:00:02.7]} 39... exd5 {[%clk 0:00:37.3]} 40. Rf2
{[%clk 0:00:03.4]} 40... Kc6 {[%clk 0:00:28.8]} 41. Rf7 {[%clk 0:00:03.2]} 41...
d4 {[%clk 0:00:26.1]} 42. Kc2 {[%clk 0:00:02.2]} 42... Be6 {[%clk 0:00:24.8]}
43. Rg7 {[%clk 0:00:02.2]} 43... Kd5 {[%clk 0:00:23.5]} 44. Kd3 {[%clk
0:00:02.2]} 44... Bf5+ {[%clk 0:00:19.7]} 45. Ke2 {[%clk 0:00:02.6]} 45... d3+
{[%clk 0:00:18.2]} 46. Kd1 {[%clk 0:00:02.6]} 46... Bb4 {[%clk 0:00:15.8]} 47.
Rg5 {[%clk 0:00:02.9]} 47... Ke5 {[%clk 0:00:13.9]} 48. Rh5 {[%clk 0:00:02.8]}
48... d2 {[%clk 0:00:13.2]} 49. a3 {[%clk 0:00:02.6]} 49... Ba5 {[%clk
0:00:10.3]} 50. Rg5 {[%clk 0:00:03]} 50... Kf6 {[%clk 0:00:10.3]} 51. Rh5 {[%clk
0:00:03.1]} 51... Be4 {[%clk 0:00:10.1]} 52. Rh6+ {[%clk 0:00:01.7]} 52... Kg5
{[%clk 0:00:09.3]} 53. Rxh7 {[%clk 0:00:01.9]} 53... Bf3+ {[%clk 0:00:09.7]} 54.
Kc2 {[%clk 0:00:02]} 54... d1=Q+ {[%clk 0:00:10.5]} 0-1

[Event "*** Titled Tuesday Blitz"]
[Site "Chess.com"]
[Date "2020.04.14"]
[Round "1"]
[White "mc4chess"]
[Black "Aygehovit1992"]
[Result "0-1"]
[WhiteElo "2369"]
[BlackElo "2714"]
[TimeControl "180+1"]
[EndTime "10:08:17 PDT"]
[Termination "Aygehovit1992 won on time"]

1. e4 {[%clk 0:03:00.4]} 1... c5 {[%clk 0:02:59.6]} 2. Nf3 {[%clk 0:03:00]} 2...
d6 {[%clk 0:02:55.2]} 3. Bb5+ {[%clk 0:03:00.4]} 3... Nd7 {[%clk 0:02:54.5]} 4.
O-O {[%clk 0:02:58.5]} 4... a6 {[%clk 0:02:54.3]} 5. Bd3 {[%clk 0:02:56.6]} 5...
Ngf6 {[%clk 0:02:53.6]} 6. Re1 {[%clk 0:02:54.9]} 6... g6 {[%clk 0:02:53.6]} 7.
c3 {[%clk 0:02:54.1]} 7... Ne5 {[%clk 0:02:52.4]} 8. Nxe5 {[%clk 0:02:36.3]}
8... dxe5 {[%clk 0:02:53.3]} 9. Bc2 {[%clk 0:02:35.1]} 9... Bh6 {[%clk
0:02:53.6]} 10. d3 {[%clk 0:02:22.1]} 10... Bxc1 {[%clk 0:02:53.4]} 11. Qxc1
{[%clk 0:02:23]} 11... O-O {[%clk 0:02:54.1]} 12. Na3 {[%clk 0:02:23.1]} 12...
b5 {[%clk 0:02:53.8]} 13. Qe3 {[%clk 0:02:22.9]} 13... Qd6 {[%clk 0:02:52.8]}
14. Rad1 {[%clk 0:02:22]} 14... Be6 {[%clk 0:02:45.5]} 15. Bb3 {[%clk
0:02:12.5]} 15... Bxb3 {[%clk 0:02:41.1]} 16. axb3 {[%clk 0:02:13.4]} 16... Rfd8
{[%clk 0:02:40.8]} 17. Nc2 {[%clk 0:02:09]} 17... Rac8 {[%clk 0:02:38]} 18. b4
{[%clk 0:02:05.2]} 18... Nd7 {[%clk 0:02:33.4]} 19. bxc5 {[%clk 0:01:50.6]}
19... Nxc5 {[%clk 0:02:30.8]} 20. d4 {[%clk 0:01:39.6]} 20... Na4 {[%clk
0:02:30.3]} 21. Rb1 {[%clk 0:01:30.7]} 21... exd4 {[%clk 0:02:18.9]} 22. Nxd4
{[%clk 0:01:30.7]} 22... e5 {[%clk 0:02:08.4]} 23. Nf3 {[%clk 0:01:29]} 23... f6
{[%clk 0:02:08.2]} 24. h4 {[%clk 0:01:24.6]} 24... Rc7 {[%clk 0:02:05.3]} 25.
Rbd1 {[%clk 0:01:14.6]} 25... Qxd1 {[%clk 0:02:04.7]} 26. Rxd1 {[%clk
0:01:15.5]} 26... Rxd1+ {[%clk 0:02:05.1]} 27. Kh2 {[%clk 0:01:16.3]} 27... Rcd7
{[%clk 0:01:59.9]} 28. h5 {[%clk 0:01:06.1]} 28... Nxb2 {[%clk 0:01:45.4]} 29.
Qb6 {[%clk 0:01:01.2]} 29... R1d6 {[%clk 0:01:43.1]} 30. Qb8+ {[%clk 0:00:59.5]}
30... Kg7 {[%clk 0:01:43.1]} 31. h6+ {[%clk 0:00:51.1]} 31... Kf7 {[%clk
0:01:26.4]} 32. Qh8 {[%clk 0:00:35.6]} 32... Ke6 {[%clk 0:01:26.3]} 33. Qg8+
{[%clk 0:00:26.1]} 33... Rf7 {[%clk 0:01:25]} 34. Qe8+ {[%clk 0:00:18.3]} 34...
Re7 {[%clk 0:01:23.3]} 35. Qg8+ {[%clk 0:00:19]} 35... Kd7 {[%clk 0:01:21.7]}
36. g4 {[%clk 0:00:17.7]} 36... g5 {[%clk 0:01:17.3]} 37. Qa8 {[%clk 0:00:12.7]}
37... Nc4 {[%clk 0:01:11.7]} 38. Qb7+ {[%clk 0:00:11.7]} 38... Ke8 {[%clk
0:01:07.9]} 39. Qc8+ {[%clk 0:00:11.8]} 39... Kf7 {[%clk 0:01:05.1]} 40. Qh8
{[%clk 0:00:12.4]} 40... Ke6 {[%clk 0:01:05.2]} 41. Qc8+ {[%clk 0:00:11.5]}
41... Rdd7 {[%clk 0:01:03.3]} 42. Qg8+ {[%clk 0:00:10.2]} 42... Kd6 {[%clk
0:01:02.8]} 43. Qb8+ {[%clk 0:00:10.2]} 43... Kc6 {[%clk 0:01:00.9]} 44. Ne1
{[%clk 0:00:09.9]} 44... Rb7 {[%clk 0:00:52.2]} 45. Qc8+ {[%clk 0:00:09.3]}
45... Rec7 {[%clk 0:00:50.5]} 46. Qe8+ {[%clk 0:00:08.6]} 46... Kb6 {[%clk
0:00:50.5]} 47. Nc2 {[%clk 0:00:09.5]} 47... a5 {[%clk 0:00:49.2]} 48. Qf8
{[%clk 0:00:07.7]} 48... Rc6 {[%clk 0:00:44]} 49. Na3 {[%clk 0:00:07.8]} 49...
Nxa3 {[%clk 0:00:43.5]} 50. Qxa3 {[%clk 0:00:08.7]} 50... Rbc7 {[%clk
0:00:44.1]} 51. Qf8 {[%clk 0:00:07]} 51... Kb7 {[%clk 0:00:41.2]} 52. Kg2 {[%clk
0:00:05]} 52... Rb6 {[%clk 0:00:37.8]} 53. Qa3 {[%clk 0:00:04]} 53... Ka6 {[%clk
0:00:35.6]} 54. Qf8 {[%clk 0:00:03.9]} 54... Kb7 {[%clk 0:00:35]} 55. Qa3 {[%clk
0:00:03.7]} 55... b4 {[%clk 0:00:35.6]} 56. cxb4 {[%clk 0:00:02.8]} 56... axb4
{[%clk 0:00:35.6]} 57. Qb3 {[%clk 0:00:03.1]} 57... Ka6 {[%clk 0:00:33.2]} 58.
Qa4+ {[%clk 0:00:03.3]} 58... Kb7 {[%clk 0:00:33.1]} 59. Qb3 {[%clk 0:00:04.2]}
59... Rc3 {[%clk 0:00:32]} 60. Qf7+ {[%clk 0:00:03]} 60... Ka6 {[%clk
0:00:31.4]} 61. Qxh7 {[%clk 0:00:02.4]} 61... b3 {[%clk 0:00:32.1]} 62. Qg8
{[%clk 0:00:02.1]} 62... b2 {[%clk 0:00:31.3]} 63. Qa2+ {[%clk 0:00:02.6]} 63...
Kb7 {[%clk 0:00:31.4]} 64. h7 {[%clk 0:00:03.1]} 64... Rc8 {[%clk 0:00:30.4]}
65. Qb1 {[%clk 0:00:02.7]} 65... Rh8 {[%clk 0:00:29.5]} 0-1